[Event "7th Cesme Open-B 2019"]
[Site "Cesme"]
[Date "2019.06.28"]
[Round "7"]
[White "Aydin, Akin"]
[Black "Acar, Cengiz Can"]
[Result "1-0"]
[ECO "A01"]
[WhiteElo "1726"]
[BlackElo "1741"]
[Annotator "NA"]
[PlyCount "115"]
[EventDate "2019.06.24"]
[EventType "swiss"]
[EventCountry "TUR"]
[SourceTitle "playchess.com"]
[Source "ChessBase"]
[SourceQuality "1"]
[TimeControl "5400+30"]

1. b3 {[%emt 0:00:30]} Nf6 {[%emt 0:13:30]} 2. Bb2 {[%emt 0:00:00]} g6 {[%emt 0:00:00]} 3. Bxf6 {[%emt 0:00:00]} exf6 {[%emt 0:00:00]} 4. c4 {[%emt 0:00:00]} d5 {[%emt 0:03:30]} 5. cxd5 {[%emt 0:01:00]} Qxd5 {[%emt 0:00:30]} 6. Nc3 {[%emt 0:00:00]} Qa5 {[%emt 0:00:30]} 7. Nf3 {[%emt 0:01:00]} Nc6 {[%emt 0:01:30]} 8. a3 {[%emt 0:03:30]} Ne5 {[%emt 0:11:30]} 9. e3 {[%emt 0:12:30]} c6 {[%emt 0:07:30]} 10. b4 {[%emt 0:02:30]} Nxf3+ {[%emt 0:06:30]} 11. gxf3 {[%emt 0:04:30]} Qh5 {[%emt 0:09:30]} 12. h4 {[%emt 0:00:00]} f5 {[%emt 0:08:30]} 13. Be2 {[%emt 0:01:00]} f4 {[%emt 0:00:30]} 14. Ne4 {[%emt 0:06:30]} Be7 {[%emt 0:01:30]} 15. exf4 {[%emt 0:01:30]} Qf5 {[%emt 0:02:30]} 16. h5 {[%emt 0:02:30]} Qxf4 {[%emt 0:00:30]} 17. hxg6 {[%emt 0:00:30]} fxg6 {[%emt 0:00:30]} 18. Qb3 {[%emt 0:01:30]} Bf5 {[%emt 0:02:30]} 19. Rxh7 {[%emt 0:09:30]} O-O-O {[%emt 0:05:30]} 20. Rxh8 {[%emt 0:06:30]} Rxh8 {[%emt 0:00:30]} 21. O-O-O {[%emt 0:00:30]} Qe5 {[%emt 0:03:30]} 22. d4 {[%emt 0:03:30]} Qg7 {[%emt 0:05:35]} 23. Qe3 {[%emt 0:12:30]} Qf7 {[%emt 0:02:39]} 24. Kb2 {[%emt 0:00:30]} Rd8 {[%emt 0:03:12]} 25. Qb3 {[%emt 0:03:30]} Be6 {[%emt 0:02:01]} 26. Qe3 {[%emt 0:00:30]} Bf5 {[%emt 0:00:35]} 27. Ng5 {[%emt 0:04:30]} Qf6 {[%emt 0:02:21]} 28. f4 {[%emt 0:00:30]} Bd6 {[%emt 0:00:51]} 29. Nf3 {[%emt 0:01:30]} Bg4 {[%emt 0:01:01]} 30. Ne5 {[%emt 0:00:30]} Bxe2 {[%emt 0:04:31]} 31. Qxe2 {[%emt 0:00:00]} Qxf4 {[%emt 0:01:11]} 32. Nxg6 {[%emt 0:02:00]} Qf6 {[%emt 0:00:25]} 33. Qg4+ {[%emt 0:00:30]} Kb8 {[%emt 0:00:23]} 34. f4 {[%emt 0:00:30]} c5 {[%emt 0:00:29]} 35. Ne5 {[%emt 0:02:12]} cxd4 {[%emt 0:00:29]} 36. Nd7+ {[%emt 0:03:16]} Rxd7 {[%emt 0:00:04]} 37. Qxd7 {[%emt 0:00:20]} Bxf4 {[%emt 0:00:01]} 38. Kb3 {[%emt 0:04:43]} a6 {[%emt 0:01:57]} 39. Qxd4 {[%emt 0:02:31]} Be5 {[%emt 0:00:00]} 40. Qd8+ {[%emt 0:00:23]} Qxd8 {[%emt 0:00:11]} 41. Rxd8+ {[%emt 0:00:30]} Kc7 {[%emt 0:00:30]} 42. Re8 {[%emt 0:00:30]} Bf6 {[%emt 0:00:30]} 43. a4 {[%emt 0:00:00]} Bg5 {[%emt 0:00:53]} 44. Kc4 {[%emt 0:00:15]} Bh4 {[%emt 0:00:29]} 45. Kd5 {[%emt 0:01:05]} Kb6 {[%emt 0:00:34]} 46. Rc8 {[%emt 0:02:05]} Be1 {[%emt 0:00:54]} 47. Rc4 {[%emt 0:00:24]} Bg3 {[%emt 0:00:42]} 48. Ke6 {[%emt 0:00:21]} Be1 {[%emt 0:00:26]} 49. Kd7 {[%emt 0:00:14]} Bg3 {[%emt 0:00:24]} 50. Kc8 {[%emt 0:00:26]} Bd6 {[%emt 0:00:21]} 51. Rd4 {[%emt 0:01:19]} Bf8 {[%emt 0:00:08]} 52. Rf4 {[%emt 0:00:41]} Be7 {[%emt 0:00:30]} 53. Re4 {[%emt 0:00:19]} Bf8 {[%emt 0:00:06]} 54. Re6+ {[%emt 0:00:45]} Ka7 {[%emt 0:00:01]} 55. b5 {[%emt 0:02:13]} axb5 {[%emt 0:00:52]} 56. axb5 {[%emt 0:00:06]} Bc5 {[%emt 0:00:24]} 57. Kc7 {[%emt 0:00:27]} Bb4 {[%emt 0:01:45]} 58. Ra6+ {[%emt 0:00:19]} 1-0

[Event "7th Cesme Open-B 2019"]
[Site "Cesme"]
[Date "2019.06.28"]
[Round "7"]
[White "Koker, Turan Sevki"]
[Black "Cil, Batuhan"]
[Result "1/2-1/2"]
[ECO "A35"]
[WhiteElo "1725"]
[BlackElo "1740"]
[Annotator "NA"]
[PlyCount "142"]
[EventDate "2019.06.24"]
[EventType "swiss"]
[EventCountry "TUR"]
[SourceTitle "playchess.com"]
[Source "ChessBase"]
[SourceQuality "1"]
[TimeControl "5400+30"]

1. e4 {[%emt 0:00:30]} c5 {[%emt 0:08:30]} 2. c3 {[%emt 0:00:30]} g6 {[%emt 0:00:30]} 3. d4 {[%emt 0:00:30]} cxd4 {[%emt 0:00:00]} 4. cxd4 {[%emt 0:00:00]} d5 {[%emt 0:00:00]} 5. exd5 {[%emt 0:00:00]} Nf6 {[%emt 0:01:30]} 6. Nf3 {[%emt 0:00:00]} Bg7 {[%emt 0:01:30]} 7. Be2 {[%emt 0:00:00]} O-O {[%emt 0:00:30]} 8. O-O {[%emt 0:00:30]} Nxd5 {[%emt 0:00:30]} 9. Nc3 {[%emt 0:00:00]} Nc6 {[%emt 0:05:30]} 10. Qb3 {[%emt 0:09:00]} Be6 {[%emt 0:12:30]} 11. Qxb7 {[%emt 0:01:30]} Nxd4 {[%emt 0:06:30]} 12. Nxd4 {[%emt 0:02:30]} Bxd4 {[%emt 0:01:30]} 13. Bh6 {[%emt 0:29:30]} Re8 {[%emt 0:03:30]} 14. Rad1 {[%emt 0:02:30]} Nxc3 {[%emt 0:00:30]} 15. bxc3 {[%emt 0:01:30]} Qb6 {[%emt 0:00:30]} 16. Bf3 {[%emt 0:00:30]} Rab8 {[%emt 0:06:30]} 17. Qxb6 {[%emt 0:02:30]} Bxb6 {[%emt 0:00:30]} 18. Rd2 {[%emt 0:00:00]} Red8 {[%emt 0:09:30]} 19. a4 {[%emt 0:08:00]} Rxd2 {[%emt 0:07:30]} 20. Bxd2 {[%emt 0:00:30]} Ba5 {[%emt 0:04:30]} 21. Rc1 {[%emt 0:00:30]} Rc8 {[%emt 0:14:02]} 22. Kf1 {[%emt 0:02:30]} Kg7 {[%emt 0:04:32]} 23. Be2 {[%emt 0:04:30]} Bc4 {[%emt 0:01:00]} 24. Rb1 {[%emt 0:00:30]} Bb6 {[%emt 0:02:06]} 25. Bxc4 {[%emt 0:00:30]} Rxc4 {[%emt 0:00:30]} 26. Rb4 {[%emt 0:00:30]} Rc7 {[%emt 0:01:17]} 27. Ke2 {[%emt 0:03:30]} e5 {[%emt 0:01:28]} 28. Rb5 {[%emt 0:00:30]} Bc5 {[%emt 0:02:40]} 29. a5 {[%emt 0:00:30]} Kf6 {[%emt 0:02:48]} 30. f3 {[%emt 0:01:30]} Ke6 {[%emt 0:00:06]} 31. Kd3 {[%emt 0:00:30]} f5 {[%emt 0:01:28]} 32. Rb8 {[%emt 0:03:30]} Rd7+ {[%emt 0:00:44]} 33. Kc2 {[%emt 0:00:30]} e4 {[%emt 0:00:00]} 34. fxe4 {[%emt 0:00:30]} fxe4 {[%emt 0:00:29]} 35. Re8+ {[%emt 0:00:30]} Kd5 {[%emt 0:00:30]} 36. Bf4 {[%emt 0:00:30]} Bd6 {[%emt 0:01:48]} 37. Bxd6 {[%emt 0:00:00]} Rxd6 {[%emt 0:00:30]} 38. Re7 {[%emt 0:00:00]} Ra6 {[%emt 0:00:04]} 39. Rd7+ {[%emt 0:00:30]} Ke5 {[%emt 0:00:22]} 40. g3 {[%emt 0:01:30]} Rxa5 {[%emt 0:00:37]} 41. Rxh7 {[%emt 0:00:30]} Ra2+ {[%emt 0:01:09]} 42. Kb3 {[%emt 0:00:30]} Ra1 {[%emt 0:00:00]} 43. Kc4 {[%emt 0:00:30]} a5 {[%emt 0:00:16]} 44. Re7+ {[%emt 0:00:30]} Kf5 {[%emt 0:00:07]} 45. Kb3 {[%emt 0:01:30]} a4+ {[%emt 0:00:45]} 46. Kb2 {[%emt 0:00:00]} Rd1 {[%emt 0:00:59]} 47. Rf7+ {[%emt 0:03:00]} Ke5 {[%emt 0:00:19]} 48. h3 {[%emt 0:01:30]} Rd3 {[%emt 0:00:31]} 49. Re7+ {[%emt 0:00:30]} Kf5 {[%emt 0:00:23]} 50. Rf7+ {[%emt 0:00:30]} Ke6 {[%emt 0:00:30]} 51. Rf4 {[%emt 0:00:30]} Ke5 {[%emt 0:00:00]} 52. Rf8 {[%emt 0:02:30]} Rxg3 {[%emt 0:00:24]} 53. h4 {[%emt 0:00:30]} e3 {[%emt 0:01:22]} 54. Kc2 {[%emt 0:00:30]} Ke4 {[%emt 0:00:03]} 55. Ra8 {[%emt 0:01:30]} Kf3 {[%emt 0:00:30]} 56. Rf8+ {[%emt 0:00:39]} Ke2 {[%emt 0:00:47]} 57. c4 {[%emt 0:00:30]} Rf3 {[%emt 0:00:13]} 58. Re8 {[%emt 0:00:21]} Rf4 {[%emt 0:00:30]} 59. Kc3 {[%emt 0:00:30]} Kf2 {[%emt 0:00:35]} 60. Kd3 {[%emt 0:00:30]} Rxh4 {[%emt 0:01:06]} 61. Rxe3 {[%emt 0:00:00]} Rxc4 {[%emt 0:00:28]} 62. Re2+ {[%emt 0:00:00]} Kf3 {[%emt 0:00:30]} 63. Re3+ {[%emt 0:00:30]} Kf4 {[%emt 0:00:00]} 64. Re6 {[%emt 0:00:00]} Rc5 {[%emt 0:01:27]} 65. Rxg6 {[%emt 0:00:00]} Ra5 {[%emt 0:00:18]} 66. Rg1 {[%emt 0:00:30]} a3 {[%emt 0:00:30]} 67. Ra1 {[%emt 0:00:30]} a2 {[%emt 0:00:30]} 68. Kc3 {[%emt 0:00:30]} Ke4 {[%emt 0:00:30]} 69. Kb2 {[%emt 0:00:00]} Kd3 {[%emt 0:00:00]} 70. Rxa2 {[%emt 0:00:00]} Rb5+ {[%emt 0:00:00]} 71. Kc1 {[%emt 0:00:00]} Ke4 {[%emt 0:00:00]} 1/2-1/2

[Event "7th Cesme Open-B 2019"]
[Site "Cesme"]
[Date "2019.06.28"]
[Round "7"]
[White "Altundal, Arda"]
[Black "Gozubuyukoglu, Selami"]
[Result "1/2-1/2"]
[ECO "C76"]
[WhiteElo "1707"]
[BlackElo "1771"]
[Annotator "NA"]
[PlyCount "79"]
[EventDate "2019.06.24"]
[EventType "swiss"]
[EventCountry "TUR"]
[SourceTitle "playchess.com"]
[Source "ChessBase"]
[SourceQuality "1"]
[TimeControl "5400+30"]

1. e4 {[%emt 0:00:30]} e5 {[%emt 0:00:30]} 2. Nf3 {[%emt 0:00:00]} Nc6 {[%emt 0:00:30]} 3. Bb5 {[%emt 0:00:00]} g6 {[%emt 0:00:30]} 4. O-O {[%emt 0:01:30]} Bg7 {[%emt 0:00:30]} 5. c3 {[%emt 0:01:30]} a6 {[%emt 0:01:30]} 6. Ba4 {[%emt 0:00:30]} d6 {[%emt 0:01:30]} 7. d4 {[%emt 0:04:30]} Bd7 {[%emt 0:01:30]} 8. Re1 {[%emt 0:03:30]} Nge7 {[%emt 0:02:30]} 9. Bb3 {[%emt 0:07:30]} O-O {[%emt 0:02:30]} 10. Na3 {[%emt 0:08:30]} Bg4 {[%emt 0:05:30]} 11. d5 {[%emt 0:01:30]} Nb8 {[%emt 0:05:30]} 12. h3 {[%emt 0:01:30]} Bc8 {[%emt 0:03:30]} 13. Bc2 {[%emt 0:02:30]} Nd7 {[%emt 0:00:30]} 14. Nd2 {[%emt 0:09:30]} Nf6 {[%emt 0:03:30]} 15. Nf1 {[%emt 0:04:30]} Nh5 {[%emt 0:03:30]} 16. Ng3 {[%emt 0:01:30]} Nf4 {[%emt 0:07:30]} 17. Ne2 {[%emt 0:00:30]} g5 {[%emt 0:05:30]} 18. Nxf4 {[%emt 0:01:30]} gxf4 {[%emt 0:04:30]} 19. Nc4 {[%emt 0:13:30]} Ng6 {[%emt 0:01:30]} 20. Nd2 {[%emt 0:01:30]} Qg5 {[%emt 0:02:30]} 21. Nf3 {[%emt 0:01:30]} Qh5 {[%emt 0:01:30]} 22. Bd3 {[%emt 0:07:30]} Kh8 {[%emt 0:02:30]} 23. Kh2 {[%emt 0:03:30]} Bf6 {[%emt 0:02:30]} 24. Ng1 {[%emt 0:04:26]} Qh6 {[%emt 0:40:30]} 25. g4 {[%emt 0:05:49]} Bh4 {[%emt 0:00:00]} 26. Kg2 {[%emt 0:07:15]} Rg8 {[%emt 0:00:00]} 27. Rf1 {[%emt 0:03:13]} Bd7 {[%emt 0:00:00]} 28. Nf3 {[%emt 0:03:11]} Rg7 {[%emt 0:00:00]} 29. Rh1 {[%emt 0:00:50]} Bg5 {[%emt 0:00:00]} 30. Rh2 {[%emt 0:01:04]} Nh4+ {[%emt 0:00:00]} 31. Nxh4 {[%emt 0:00:26]} Qxh4 {[%emt 0:00:00]} 32. f3 {[%emt 0:00:20]} Qh6 {[%emt 0:00:00]} 33. Bd2 {[%emt 0:00:43]} Bh4 {[%emt 0:00:00]} 34. Be1 {[%emt 0:00:36]} Rf8 {[%emt 0:00:00]} 35. Bxh4 {[%emt 0:00:34]} Qxh4 {[%emt 0:00:00]} 36. Qe1 {[%emt 0:00:00]} Qh6 {[%emt 0:00:00]} 37. Qh1 {[%emt 0:00:52]} f5 {[%emt 0:00:00]} 38. Kf2 {[%emt 0:00:14]} Qh4+ {[%emt 0:00:00]} 39. Ke2 {[%emt 0:00:00]} fxe4 {[%emt 0:00:00]} 40. Bxe4 {[%emt 0:00:25]} 1/2-1/2

[Event "7th Cesme Open-B 2019"]
[Site "Cesme"]
[Date "2019.06.29"]
[Round "8"]
[White "Gozubuyukoglu, Selami"]
[Black "Asgharvand, Davood"]
[Result "0-1"]
[ECO "B90"]
[WhiteElo "1771"]
[BlackElo "1872"]
[Annotator "NA"]
[PlyCount "88"]
[EventDate "2019.06.24"]
[EventType "swiss"]
[EventCountry "TUR"]
[SourceTitle "playchess.com"]
[Source "ChessBase"]
[SourceQuality "1"]
[TimeControl "5400+30"]

1. e4 {[%emt 0:00:30]} c5 {[%emt 0:01:30]} 2. Nf3 {[%emt 0:00:30]} d6 {[%emt 0:00:00]} 3. d4 {[%emt 0:00:00]} cxd4 {[%emt 0:00:00]} 4. Nxd4 {[%emt 0:00:00]} Nf6 {[%emt 0:00:30]} 5. Nc3 {[%emt 0:00:30]} a6 {[%emt 0:00:00]} 6. h3 {[%emt 0:00:30]} g6 {[%emt 0:03:00]} 7. g4 {[%emt 0:00:30]} Bg7 {[%emt 0:00:30]} 8. Bg2 {[%emt 0:00:00]} Qc7 {[%emt 0:00:30]} 9. Be3 {[%emt 0:01:00]} Nc6 {[%emt 0:01:30]} 10. O-O {[%emt 0:03:30]} O-O {[%emt 0:02:30]} 11. f4 {[%emt 0:03:30]} Nxd4 {[%emt 0:05:30]} 12. Bxd4 {[%emt 0:00:30]} e5 {[%emt 0:00:30]} 13. Be3 {[%emt 0:01:30]} exf4 {[%emt 0:01:30]} 14. Bxf4 {[%emt 0:05:30]} Qb6+ {[%emt 0:00:30]} 15. Kh1 {[%emt 0:00:00]} Qxb2 {[%emt 0:01:30]} 16. Qd2 {[%emt 0:00:00]} Nxg4 {[%emt 0:06:30]} 17. Nd5 {[%emt 0:03:30]} Ne5 {[%emt 0:02:30]} 18. Rab1 {[%emt 0:12:30]} Qa3 {[%emt 0:05:30]} 19. Rb3 {[%emt 0:06:30]} Qc5 {[%emt 0:01:30]} 20. Bh6 {[%emt 0:07:30]} f6 {[%emt 0:23:30]} 21. Bxg7 {[%emt 0:10:30]} Kxg7 {[%emt 0:00:00]} 22. Nb6 {[%emt 0:00:30]} Be6 {[%emt 0:04:00]} 23. Rb2 {[%emt 0:07:30]} Rad8 {[%emt 0:02:30]} 24. Rfb1 {[%emt 0:01:30]} Rf7 {[%emt 0:00:30]} 25. a4 {[%emt 0:00:30]} Rc7 {[%emt 0:02:30]} 26. a5 {[%emt 0:00:30]} Rf8 {[%emt 0:03:30]} 27. Rd1 {[%emt 0:02:30]} Rd8 {[%emt 0:02:30]} 28. Rdb1 {[%emt 0:00:30]} Nf7 {[%emt 0:00:30]} 29. Na4 {[%emt 0:03:30]} Qh5 {[%emt 0:02:30]} 30. Kh2 {[%emt 0:05:30]} Rdd7 {[%emt 0:00:30]} 31. Nb6 {[%emt 0:00:30]} Re7 {[%emt 0:01:30]} 32. Na8 {[%emt 0:01:30]} Rc8 {[%emt 0:00:30]} 33. Nb6 {[%emt 0:00:30]} Rc5 {[%emt 0:00:30]} 34. Na8 {[%emt 0:01:30]} Rxa5 {[%emt 0:02:30]} 35. Qf2 {[%emt 0:03:34]} b5 {[%emt 0:02:30]} 36. Qb6 {[%emt 0:00:44]} Ra3 {[%emt 0:01:30]} 37. Rb3 {[%emt 0:00:31]} Bxb3 {[%emt 0:00:00]} 38. cxb3 {[%emt 0:00:36]} Ra2 {[%emt 0:00:00]} 39. Qe3 {[%emt 0:00:30]} d5 {[%emt 0:00:30]} 40. Rf1 {[%emt 0:00:59]} Rxe4 {[%emt 0:02:30]} 41. Qb6 {[%emt 0:02:06]} Qe5+ {[%emt 0:00:30]} 42. Kh1 {[%emt 0:00:21]} Ree2 {[%emt 0:00:35]} 43. Rg1 {[%emt 0:00:42]} Qg3 {[%emt 0:01:17]} 44. Nc7 {[%emt 0:01:14]} Qxh3+ {[%emt 0:00:19]} 0-1

[Event "7th Cesme Open-B 2019"]
[Site "Cesme"]
[Date "2019.06.29"]
[Round "8"]
[White "Algunerhan, Siar"]
[Black "Aydin, Akin"]
[Result "1-0"]
[ECO "C15"]
[WhiteElo "1770"]
[BlackElo "1726"]
[Annotator "NA"]
[PlyCount "49"]
[EventDate "2019.06.24"]
[EventType "swiss"]
[EventCountry "TUR"]
[SourceTitle "playchess.com"]
[Source "ChessBase"]
[SourceQuality "1"]
[TimeControl "5400+30"]

1. e4 {[%emt 0:00:30]} e6 {[%emt 0:00:30]} 2. d4 {[%emt 0:00:30]} d5 {[%emt 0:00:30]} 3. Nc3 {[%emt 0:00:30]} Bb4 {[%emt 0:00:30]} 4. Bd3 {[%emt 0:00:30]} dxe4 {[%emt 0:00:30]} 5. Bxe4 {[%emt 0:00:30]} Nf6 {[%emt 0:00:30]} 6. Bf3 {[%emt 0:00:30]} Nbd7 {[%emt 0:00:00]} 7. Nge2 {[%emt 0:03:30]} O-O {[%emt 0:00:00]} 8. Bg5 {[%emt 0:01:30]} e5 {[%emt 0:12:30]} 9. O-O {[%emt 0:02:30]} Be7 {[%emt 0:06:30]} 10. Ng3 {[%emt 0:02:30]} h6 {[%emt 0:05:30]} 11. Be3 {[%emt 0:01:30]} c5 {[%emt 0:04:30]} 12. d5 {[%emt 0:01:30]} Nb6 {[%emt 0:02:30]} 13. Qe2 {[%emt 0:02:30]} Ne8 {[%emt 0:10:30]} 14. Rad1 {[%emt 0:04:30]} f5 {[%emt 0:15:30]} 15. d6 {[%emt 0:01:30]} Bxd6 {[%emt 0:04:30]} 16. Nb5 {[%emt 0:08:30]} Qe7 {[%emt 0:14:44]} 17. Rxd6 {[%emt 0:05:30]} Nxd6 {[%emt 0:00:30]} 18. Bxc5 {[%emt 0:00:00]} Rd8 {[%emt 0:06:08]} 19. Rd1 {[%emt 0:00:00]} Nbc4 {[%emt 0:00:30]} 20. Bd5+ {[%emt 0:00:30]} Be6 {[%emt 0:00:21]} 21. Nxf5 {[%emt 0:03:30]} Qf6 {[%emt 0:03:21]} 22. Nfxd6 {[%emt 0:02:30]} Bxd5 {[%emt 0:01:51]} 23. Rxd5 {[%emt 0:01:30]} Nxd6 {[%emt 0:01:24]} 24. Nxd6 {[%emt 0:00:30]} Rac8 {[%emt 0:00:54]} 25. Nxc8 {[%emt 0:01:30]} 1-0

[Event "7th Cesme Open-B 2019"]
[Site "Cesme"]
[Date "2019.06.29"]
[Round "8"]
[White "Cil, Batuhan"]
[Black "Kocakaplan, Emre"]
[Result "1/2-1/2"]
[ECO "A46"]
[WhiteElo "1740"]
[BlackElo "1718"]
[Annotator "NA"]
[PlyCount "113"]
[EventDate "2019.06.24"]
[EventType "swiss"]
[EventCountry "TUR"]
[SourceTitle "playchess.com"]
[Source "ChessBase"]
[SourceQuality "1"]
[TimeControl "5400+30"]

1. d4 {[%emt 0:02:30]} Nf6 {[%emt 0:00:30]} 2. Nf3 {[%emt 0:00:30]} e6 {[%emt 0:00:30]} 3. Bf4 {[%emt 0:00:00]} c5 {[%emt 0:00:00]} 4. c3 {[%emt 0:00:00]} Qb6 {[%emt 0:01:00]} 5. Qb3 {[%emt 0:07:30]} Nd5 {[%emt 0:02:30]} 6. Bg3 {[%emt 0:02:30]} cxd4 {[%emt 0:03:30]} 7. Qxb6 {[%emt 0:09:30]} axb6 {[%emt 0:01:30]} 8. Nxd4 {[%emt 0:00:30]} Bc5 {[%emt 0:02:30]} 9. e3 {[%emt 0:09:30]} f5 {[%emt 0:03:30]} 10. Be2 {[%emt 0:07:30]} f4 {[%emt 0:07:30]} 11. exf4 {[%emt 0:14:30]} Bxd4 {[%emt 0:01:30]} 12. cxd4 {[%emt 0:00:30]} Nb4 {[%emt 0:00:30]} 13. O-O {[%emt 0:04:30]} N8c6 {[%emt 0:00:30]} 14. d5 {[%emt 0:08:30]} Nd4 {[%emt 0:04:30]} 15. Nc3 {[%emt 0:02:30]} h5 {[%emt 0:06:30]} 16. f5 {[%emt 0:02:30]} Nxd5 {[%emt 0:03:30]} 17. Bc4 {[%emt 0:07:58]} Nxc3 {[%emt 0:06:30]} 18. bxc3 {[%emt 0:00:30]} Nxf5 {[%emt 0:00:30]} 19. Bc7 {[%emt 0:00:14]} d5 {[%emt 0:04:30]} 20. Bd3 {[%emt 0:00:50]} Bd7 {[%emt 0:01:30]} 21. Bxb6 {[%emt 0:01:43]} Kf7 {[%emt 0:02:30]} 22. Rfc1 {[%emt 0:04:59]} Rhc8 {[%emt 0:06:30]} 23. Bxf5 {[%emt 0:04:26]} exf5 {[%emt 0:00:00]} 24. f4 {[%emt 0:00:00]} Rc4 {[%emt 0:02:00]} 25. Bd4 {[%emt 0:00:30]} Rca4 {[%emt 0:00:00]} 26. Rcb1 {[%emt 0:01:45]} Bc6 {[%emt 0:02:00]} 27. Rb2 {[%emt 0:00:19]} Re8 {[%emt 0:00:30]} 28. Kf2 {[%emt 0:02:53]} Re4 {[%emt 0:00:00]} 29. g3 {[%emt 0:00:02]} b5 {[%emt 0:03:00]} 30. a3 {[%emt 0:00:54]} g6 {[%emt 0:00:30]} 31. h4 {[%emt 0:00:49]} Ke6 {[%emt 0:00:30]} 32. Rb4 {[%emt 0:02:56]} Ra8 {[%emt 0:01:30]} 33. Ra2 {[%emt 0:00:16]} Kd7 {[%emt 0:00:30]} 34. Ra1 {[%emt 0:00:22]} Rae8 {[%emt 0:01:30]} 35. Rb2 {[%emt 0:00:30]} Kd6 {[%emt 0:00:30]} 36. Rd2 {[%emt 0:00:22]} Ra8 {[%emt 0:04:30]} 37. Rb2 {[%emt 0:00:22]} Ra6 {[%emt 0:01:30]} 38. Rb3 {[%emt 0:01:06]} Ra8 {[%emt 0:02:30]} 39. Rb2 {[%emt 0:00:12]} Re6 {[%emt 0:00:30]} 40. Rb4 {[%emt 0:00:39]} Ree8 {[%emt 0:01:30]} 41. Rb2 {[%emt 0:00:23]} Ra4 {[%emt 0:00:30]} 42. Rb3 {[%emt 0:00:40]} Rea8 {[%emt 0:00:30]} 43. Ra2 {[%emt 0:00:43]} Bd7 {[%emt 0:02:30]} 44. Ra1 {[%emt 0:00:18]} Rc4 {[%emt 0:01:30]} 45. Ra2 {[%emt 0:01:01]} Raa4 {[%emt 0:02:30]} 46. Rb4 {[%emt 0:00:16]} Rcxb4 {[%emt 0:00:30]} 47. cxb4 {[%emt 0:00:30]} Ra8 {[%emt 0:00:30]} 48. Ke3 {[%emt 0:00:53]} Rc8 {[%emt 0:00:30]} 49. Bc5+ {[%emt 0:00:12]} Kc6 {[%emt 0:00:00]} 50. Bd4 {[%emt 0:01:16]} Re8+ {[%emt 0:00:00]} 51. Be5 {[%emt 0:00:21]} Kb6 {[%emt 0:01:30]} 52. Rc2 {[%emt 0:00:14]} Bc6 {[%emt 0:00:39]} 53. Kd4 {[%emt 0:00:09]} Ra8 {[%emt 0:01:20]} 54. Rc3 {[%emt 0:00:30]} Re8 {[%emt 0:00:00]} 55. Rc5 {[%emt 0:00:35]} Ra8 {[%emt 0:00:08]} 56. Rc3 {[%emt 0:00:40]} Re8 {[%emt 0:00:23]} 57. Rc5 {[%emt 0:00:21]} 1/2-1/2

[Event "7th Cesme Open-B 2019"]
[Site "Cesme"]
[Date "2019.06.29"]
[Round "8"]
[White "Altundal, Arda"]
[Black "Koker, Turan Sevki"]
[Result "0-1"]
[ECO "C99"]
[WhiteElo "1707"]
[BlackElo "1725"]
[Annotator "NA"]
[PlyCount "100"]
[EventDate "2019.06.24"]
[EventType "swiss"]
[EventCountry "TUR"]
[SourceTitle "playchess.com"]
[Source "ChessBase"]
[SourceQuality "1"]
[TimeControl "5400+30"]

1. e4 {[%emt 0:00:30]} e5 {[%emt 0:00:30]} 2. Nf3 {[%emt 0:00:00]} Nc6 {[%emt 0:00:30]} 3. Bb5 {[%emt 0:00:00]} a6 {[%emt 0:00:30]} 4. Ba4 {[%emt 0:00:30]} Nf6 {[%emt 0:00:30]} 5. O-O {[%emt 0:00:30]} Be7 {[%emt 0:00:00]} 6. Re1 {[%emt 0:00:00]} b5 {[%emt 0:00:00]} 7. Bb3 {[%emt 0:00:00]} d6 {[%emt 0:00:00]} 8. c3 {[%emt 0:00:00]} O-O {[%emt 0:00:00]} 9. h3 {[%emt 0:00:00]} Na5 {[%emt 0:00:00]} 10. Bc2 {[%emt 0:00:00]} c5 {[%emt 0:00:00]} 11. d4 {[%emt 0:00:00]} Qc7 {[%emt 0:00:00]} 12. Nbd2 {[%emt 0:00:30]} Rd8 {[%emt 0:00:00]} 13. Nf1 {[%emt 0:01:30]} cxd4 {[%emt 0:00:00]} 14. cxd4 {[%emt 0:00:30]} exd4 {[%emt 0:00:00]} 15. Nxd4 {[%emt 0:01:30]} d5 {[%emt 0:00:00]} 16. e5 {[%emt 0:12:30]} Ne4 {[%emt 0:00:00]} 17. f4 {[%emt 0:51:30]} Bc5 {[%emt 0:00:00]} 18. Be3 {[%emt 0:01:30]} Nc4 {[%emt 0:00:00]} 19. Qc1 {[%emt 0:21:24]} Qb6 {[%emt 0:00:30]} 20. Rd1 {[%emt 0:00:29]} Ra7 {[%emt 0:09:30]} 21. Nh2 {[%emt 0:03:19]} Rc7 {[%emt 0:00:30]} 22. Nhf3 {[%emt 0:00:24]} Qg6 {[%emt 0:02:30]} 23. Kh1 {[%emt 0:03:50]} Qh5 {[%emt 0:03:30]} 24. Re1 {[%emt 0:00:56]} Bg4 {[%emt 0:03:30]} 25. Qd1 {[%emt 0:00:30]} Bxf3 {[%emt 0:00:30]} 26. Qxf3 {[%emt 0:00:30]} Qxf3 {[%emt 0:00:30]} 27. gxf3 {[%emt 0:00:30]} Nxe3 {[%emt 0:00:30]} 28. fxe4 {[%emt 0:00:49]} Bxd4 {[%emt 0:00:30]} 29. Bb3 {[%emt 0:00:30]} dxe4 {[%emt 0:00:30]} 30. Rac1 {[%emt 0:00:30]} Rdc8 {[%emt 0:00:30]} 31. Rb1 {[%emt 0:00:30]} Nc4 {[%emt 0:00:30]} 32. Rbd1 {[%emt 0:00:30]} Bxb2 {[%emt 0:00:30]} 33. Rxe4 {[%emt 0:00:00]} g6 {[%emt 0:00:30]} 34. e6 {[%emt 0:00:41]} f5 {[%emt 0:00:00]} 35. e7 {[%emt 0:00:00]} Re8 {[%emt 0:02:00]} 36. Rd8 {[%emt 0:00:15]} Kf7 {[%emt 0:00:00]} 37. Re1 {[%emt 0:01:15]} Rcxe7 {[%emt 0:00:00]} 38. Rxe7+ {[%emt 0:00:57]} Rxe7 {[%emt 0:00:30]} 39. Ra8 {[%emt 0:00:00]} Re6 {[%emt 0:01:30]} 40. a4 {[%emt 0:00:07]} Re3 {[%emt 0:00:00]} 41. Ra7+ {[%emt 0:00:00]} Kg8 {[%emt 0:00:00]} 42. Ra8+ {[%emt 0:01:10]} Kg7 {[%emt 0:00:30]} 43. Ra7+ {[%emt 0:00:30]} Kh6 {[%emt 0:00:00]} 44. Bc2 {[%emt 0:01:09]} Re1+ {[%emt 0:00:00]} 45. Kg2 {[%emt 0:00:30]} Re2+ {[%emt 0:00:00]} 46. Kf3 {[%emt 0:00:00]} Rxc2 {[%emt 0:00:00]} 47. Rxa6 {[%emt 0:00:00]} bxa4 {[%emt 0:00:30]} 48. Rxa4 {[%emt 0:00:00]} Bc1 {[%emt 0:00:00]} 49. h4 {[%emt 0:00:19]} Rc3+ {[%emt 0:00:00]} 50. Kg2 {[%emt 0:00:15]} Bxf4 {[%emt 0:00:00]} 0-1